bitfinex-derivatives/quotes_ETHF0:USTF0_20210111
["timestamp","ask_amount","ask_price","bid_price","bid_amount"]
[1610370049344,2.3224,1066.0,1064.7,4.00959]
[1610370050547,1.9888,1066.3,1064.8,1.42925689]
[1610370050946,4.00959,1065.0,1064.8,1.42925689]
[1610370051147,2.3921,1065.8,1064.8,1.42925689]
[1610370053048,4.00959,1064.9,1064.8,1.42925689]
[1610370053249,4.00959,1064.9,1064.1,2.2897]
[1610370053448,6.14849,1064.9,1063.9,0.28601103]
[1610370053649,6.14849,1064.9,1063.8,69.25872207]
[1610370053650,6.14849,1064.9,1063.8,68.6867]
[1610370054955,4.00959,1063.9,1063.8,68.6867]
[1610370055371,5.82239,1063.9,1063.8,68.6867]
[1610370055562,5.82239,1063.9,1063.0,1.34500856]
[1610370055779,1.8128,1063.9,1063.0,1.34500856]
[1610370056158,1.8128,1063.9,1063.1,0.28624522]
[1610370056451,2.1389,1064.9,1063.1,2.30964522]
[1610370057052,2.1389,1064.9,1063.1,2.0234]
[1610370057557,2.1389,1064.9,1063.2,1.43102689]
[1610370058452,8.82447857,1065.1,1063.2,1.43102689]
[1610370059053,8.82447857,1065.1,1063.1,2.0234]
[1610370059368,8.84947586,1064.8,1063.1,2.0234]
[1610370059567,10.67017586,1064.8,1063.1,2.0234]
[1610370060454,12.56177586,1064.8,1063.1,2.0234]
[1610370060656,8.86702811,1064.7,1063.1,2.0234]
[1610370061055,4.00959,1063.2,1063.1,2.0234]
[1610370061257,2.0989,1063.6,1063.0,1.05875586]
[1610370063057,4.00959,1063.1,1063.0,1.05875586]
[1610370064256,4.00959,1063.1,1061.6,78.95290776]
[1610370064257,4.00959,1063.1,1061.6,78.6663]
[1610370064657,4.00959,1063.1,1061.6,73.3495]
[1610370064861,8.81321154,1063.0,1060.8,0.28680001]
[1610370065060,4.00959,1061.7,1060.8,0.28680001]
[1610370065262,4.00959,1061.7,1060.6,0.86040004]
[1610370065263,4.00959,1061.7,1060.6,0.28685956]
[1610370065660,4.00959,1061.7,1060.5,4.00959]
[1610370066961,2.0613,1061.9,1060.9,4.00959]
[1610370067161,2.0613,1061.9,1060.9,5.53149]
[1610370067563,19.45700358,1062.8,1060.9,5.53149]
[1610370067765,8.76126928,1062.8,1060.9,5.53149]
[1610370067965,1.9822,1063.0,1061.0,0.28683468]
[1610370068162,8.77834362,1063.2,1061.0,0.28683468]
[1610370068364,8.80378234,1063.8,1061.6,0.28667601]
[1610370068563,12.71440193,1064.1,1061.6,0.28667601]
[1610370068564,8.82202562,1064.0,1061.8,0.28661216]
[1610370068763,7.86202562,1064.0,1061.8,0.28661216]
[1610370068965,7.06312853,1064.5,1063.9,4.00959]
[1610370069164,7.06312853,1064.5,1063.9,5.78499]
[1610370069365,12.80447862,1065.0,1063.9,5.78499]
[1610370069764,12.84619213,1065.5,1063.9,5.78499]
[1610370070165,14.82923603,1065.8,1063.9,5.78499]
[1610370070365,16.79734696,1066.0,1063.9,5.78499]
[1610370070366,14.8595084,1066.0,1063.9,5.78499]
[1610370070568,12.8112084,1066.0,1063.9,5.78499]
[1610370070766,16.88762945,1066.5,1063.9,5.78499]
[1610370070965,16.88762945,1066.5,1066.4,4.00959]
[1610370071166,16.91883903,1066.7,1065.4,1.5109]
[1610370071768,16.93634974,1066.8,1065.4,1.5109]
[1610370072167,16.91226536,1066.4,1065.4,0.903]
[1610370072366,16.9001967,1066.3,1064.5,2.3855]
[1610370072567,16.9001967,1066.3,1063.9,1.7754]
[1610370072767,16.89611536,1066.2,1063.9,1.7754]
[1610370072968,16.89611536,1066.2,1064.6,4.00959]
[1610370073168,16.89260372,1066.1,1064.6,4.00959]
[1610370073368,16.87164452,1066.0,1064.6,4.00959]
[1610370073768,18.72653072,1066.1,1064.6,4.00959]
[1610370074170,1.8635,1066.1,1064.6,4.00959]
[1610370074570,1.8635,1066.1,1064.3,1.5262]
[1610370074970,4.00959,1064.6,1064.3,5.53579]
[1610370075171,4.00959,1064.6,1064.3,1.5262]
[1610370075772,4.00959,1064.6,1063.9,1.7754]
[1610370075970,4.00959,1064.6,1063.1,0.28626169]
[1610370076571,5.77609,1064.6,1062.7,0.28637422]
[1610370076873,5.77609,1064.6,1062.5,0.28643815]
[1610370077274,5.77609,1064.6,1062.7,0.28638787]
[1610370077474,5.77609,1064.6,1062.7,2.3617]
[1610370079077,4.00959,1062.8,1062.7,2.3617]
[1610370079677,4.00959,1062.8,1061.6,0.85982354]
[1610370079678,4.00959,1062.8,1061.6,0.28663867]
[1610370079877,6.11989,1062.8,1061.6,0.28663867]
[1610370080077,6.11989,1062.8,1061.4,0.28668773]
[1610370080477,6.11989,1062.8,1061.3,0.28669888]
[1610370080683,6.11989,1062.8,1061.4,0.28668006]
[1610370080878,6.11989,1062.8,1061.4,2.01068006]
[1610370081078,4.00959,1062.5,1061.4,2.01068006]
[1610370081478,2.1103,1062.8,1061.4,1.724]
[1610370081777,1.5579,1063.1,1061.4,1.724]
[1610370081978,1.5049,1063.5,1061.4,1.724]
[1610370082177,10.85696492,1063.9,1061.7,0.28659546]
[1610370082377,10.85696492,1063.9,1061.7,2.42119546]
[1610370082577,10.88077935,1064.5,1062.2,0.28651725]
[1610370082778,10.88077935,1064.5,1062.2,2.43191725]
[1610370082978,4.00959,1063.6,1063.3,4.00959]
[1610370083178,10.88077935,1064.5,1063.3,4.00959]
[1610370083380,1.9267,1064.3,1063.3,6.01899]
[1610370084980,1.9267,1064.3,1064.2,4.00959]
[1610370085180,7.7099,1064.6,1064.2,4.00959]
[1610370085982,10.91605206,1065.2,1064.2,4.00959]
[1610370086183,10.92922209,1065.3,1064.2,4.00959]
[1610370086583,10.94095105,1065.6,1064.2,4.00959]
[1610370086784,12.92931108,1065.8,1064.2,4.00959]
[1610370086785,10.95757257,1065.8,1064.2,4.00959]
[1610370086983,14.96716257,1065.8,1064.7,4.00959]
[1610370087183,8.97137426,1065.7,1064.7,2.0574]
[1610370087387,8.97154853,1065.5,1064.7,2.0574]
[1610370087586,8.97154853,1065.5,1064.0,2.3444]
[1610370087787,8.96044604,1065.3,1064.0,2.3444]
[1610370087987,10.65084604,1065.3,1064.0,2.3444]
[1610370088388,8.96970091,1065.2,1064.0,2.3444]
[1610370088788,8.97151964,1065.1,1064.0,2.3444]
[1610370088988,4.00959,1064.1,1064.0,2.3444]
[1610370089388,4.00959,1064.1,1063.7,2.0349]
[1610370089791,4.00959,1064.1,1063.4,67.2906]
[1610370089992,4.00959,1064.1,1062.3,0.28650432]
[1610370090593,4.00959,1064.1,1062.2,0.2865395]
[1610370090794,1.5744,1064.2,1062.2,0.2865395]
[1610370090992,1.5744,1064.2,1062.3,0.28649813]
[1610370091194,8.92807112,1064.4,1062.3,0.28649813]
[1610370091393,6.44469,1064.6,1062.5,0.28647563]
[1610370091394,15.38099571,1064.6,1062.5,0.28647563]
[1610370091593,12.94589571,1064.6,1062.5,2.02667563]
[1610370091992,4.00959,1064.6,1062.6,0.28641441]
[1610370092193,4.00959,1064.6,1062.8,0.28641765]
[1610370092394,4.00959,1064.6,1062.8,2.51771765]
[1610370093000,10.550894,1064.9,1063.9,4.00959]
[1610370093200,8.95580378,1064.8,1063.7,2.2632]
[1610370093600,8.95378755,1064.7,1063.7,2.2632]
[1610370093801,8.95120548,1064.6,1063.7,2.2632]
[1610370094000,10.96120548,1064.6,1063.7,2.2632]
[1610370094200,8.94426842,1064.4,1062.8,2.2313]
[1610370095001,8.94426842,1064.4,1063.5,4.00959]
[1610370095201,8.94426842,1064.4,1063.1,1.8649]
[1610370095803,8.96059393,1064.3,1063.1,1.8649]
[1610370096004,8.95548771,1064.0,1063.1,1.8649]
[1610370096206,10.81148771,1064.0,1063.1,0.8116]
[1610370096410,10.81148771,1064.0,1062.2,2.4175]
[1610370096411,8.95269744,1063.8,1062.2,2.4175]
[1610370096605,8.96093885,1063.9,1061.7,0.28668633]
[1610370096804,8.96093885,1063.9,1061.7,2.55248633]
[1610370097005,4.00959,1063.9,1063.3,4.00959]
[1610370097306,4.00959,1063.9,1062.2,0.28658507]
[1610370098506,4.00959,1063.9,1062.0,0.5731103]
[1610370098507,4.00959,1063.9,1062.0,0.28659222]
[1610370099009,4.00959,1063.9,1061.9,0.28660158]
[1610370099207,4.00959,1063.1,1062.9,4.00959]
[1610370099406,4.00959,1063.1,1062.1,1.43288122]
[1610370099806,2.1027,1063.2,1062.1,1.43288122]
[1610370100606,2.1027,1063.2,1062.0,1.6208]
[1610370101207,4.00959,1062.7,1062.0,1.6208]
[1610370101807,4.00959,1062.7,1061.7,2.2658]
[1610370102008,4.00959,1062.7,1061.2,0.2868221]
[1610370102408,4.00959,1062.7,1061.1,0.28681501]
[1610370102608,4.00959,1062.7,1061.0,1.17363003]
[1610370102609,4.00959,1062.7,1061.0,1.46045498]
[1610370102808,4.00959,1062.7,1061.0,0.88682495]
[1610370103008,4.00959,1062.7,1061.0,0.6]
[1610370103209,4.00959,1061.5,1061.0,0.6]
[1610370103808,2.4748,1062.0,1061.0,0.6]
[1610370104007,2.4748,1062.0,1061.0,2.1913]
[1610370105209,4.00959,1061.1,1061.0,2.1913]
[1610370105408,4.00959,1061.1,1060.7,2.2182]
[1610370105620,4.00959,1061.1,1058.6,4.01816235]
[1610370105810,4.00959,1061.1,1059.9,0.28707752]
[1610370106010,4.00959,1061.1,1059.9,1.90227752]
[1610370106211,4.00959,1061.1,1059.9,1.6152]
[1610370106411,6.91091233,1061.0,1059.0,2.3232]
[1610370106611,9.27481233,1061.0,1058.9,0.28730259]
[1610370106812,9.27481233,1061.0,1058.7,1.4963]
[1610370106813,6.90622058,1060.7,1058.7,1.4963]
[1610370107015,4.92803458,1060.3,1058.7,1.4963]
[1610370107211,4.00959,1058.8,1058.7,1.4963]
[1610370107413,2.4391,1059.4,1058.7,1.4963]
[1610370108511,1.6508,1060.3,1058.7,1.4963]
[1610370108712,62.1186,1059.8,1058.7,1.4963]
[1610370108910,2.1215,1059.9,1058.7,1.4963]
[1610370109111,2.1215,1059.9,1058.4,4.00959]
[1610370109311,2.1215,1059.9,1059.0,4.00959]
[1610370109511,2.1215,1059.9,1059.0,6.18669]
[1610370109911,1.6508,1060.3,1059.0,6.18669]
[1610370110310,2.2506,1060.7,1059.0,6.18669]
[1610370111110,2.2506,1060.7,1059.0,36.18669]
[1610370111311,4.94769241,1061.2,1060.6,4.00959]
[1610370111510,12.85609186,1061.7,1060.6,4.00959]
[1610370111511,4.95535612,1061.6,1060.6,4.00959]
[1610370111913,4.95938544,1061.7,1060.6,5.77529]
[1610370112115,4.9672942,1062.0,1060.6,35.77529]
[1610370112512,10.92209244,1062.3,1060.6,35.77529]
[1610370112513,4.97465413,1062.3,1060.6,35.77529]
[1610370112712,4.97465413,1062.3,1060.6,5.77529]
[1610370112913,6.97656559,1062.8,1060.7,30.0]
[1610370113113,5.10396559,1062.8,1060.7,30.0]
[1610370113314,5.10396559,1062.8,1060.6,2.62650153]
[1610370113513,10.81813139,1063.1,1060.7,1.14769879]
[1610370113915,8.97252853,1063.0,1060.6,2.91329538]
[1610370114313,8.96631427,1062.8,1060.6,1.7657]
[1610370114515,8.9506659,1062.5,1060.6,1.7657]
[1610370114716,11.2519659,1062.5,1060.6,1.7657]
[1610370115315,4.00959,1060.8,1060.6,1.7657]
[1610370115714,4.00959,1060.8,1060.6,0.2072]
[1610370115915,4.00959,1060.8,1060.3,1.5579]
[1610370116116,5.66719,1060.8,1059.4,1.14847675]
[1610370116320,5.66719,1060.8,1058.7,3.26365562]
[1610370116515,5.66719,1060.8,1058.7,2.1146]
[1610370116714,5.66719,1060.8,1058.6,1.14929998]
[1610370116916,5.66719,1060.8,1058.8,0.28733651]
[1610370117116,5.66719,1060.8,1058.8,1.798]
[1610370117316,4.00959,1058.9,1058.8,1.798]
[1610370117514,1.6576,1060.8,1058.8,1.798]
[1610370117515,2.0518,1059.5,1058.8,1.798]
[1610370118817,10.55936865,1060.8,1058.8,1.798]
[1610370119017,1.6576,1060.8,1058.8,2.08543381]
[1610370119216,5.66719,1060.8,1060.7,4.00959]
[1610370119417,1.6576,1060.8,1060.7,4.00959]
[1610370119616,1.8996,1061.1,1060.7,4.00959]
[1610370119819,8.93144219,1061.5,1060.7,4.00959]
[1610370120017,8.93060492,1061.6,1060.4,2.357]
[1610370120618,11.09423753,1061.7,1060.4,2.357]
[1610370121017,2.156,1061.7,1060.4,2.357]
[1610370121217,4.00959,1060.9,1060.4,2.357]
[1610370121418,2.0789,1061.2,1060.4,2.357]
[1610370122019,8.9544964,1062.2,1060.4,2.357]
[1610370122422,8.96219594,1062.4,1060.4,32.357]
[1610370122620,8.96838939,1062.5,1060.4,32.64410014]
[1610370123021,8.98841606,1062.8,1060.7,0.28701943]
[1610370123221,8.98841606,1062.8,1062.7,4.00959]
[1610370123423,6.99847947,1062.9,1062.7,4.00959]
[1610370123623,10.99475612,1063.1,1062.1,2.0094]
[1610370123624,7.00260562,1063.1,1062.1,2.0094]
[1610370124424,6.99473535,1063.0,1062.1,2.0094]
[1610370124625,6.98961107,1062.9,1060.9,0.28692851]
[1610370125025,6.98576166,1062.8,1060.7,1.85053016]
[1610370125223,4.00959,1062.4,1061.9,4.00959]
[1610370125824,2.2103,1062.7,1061.9,4.00959]
[1610370126024,2.2103,1062.7,1061.9,6.31839]
[1610370126228,6.98681656,1063.2,1061.9,36.31839]
[1610370126427,6.98681656,1063.2,1061.9,32.3088]
[1610370126626,8.9949585,1063.6,1061.9,32.3088]
[1610370127026,9.00574623,1064.1,1062.0,0.28669797]
[1610370127227,9.00664319,1064.3,1064.0,4.00959]
[1610370127426,78.42744319,1064.3,1064.0,6.18759]
[1610370127628,69.4208,1064.3,1064.0,6.18759]
[1610370130639,69.4208,1064.3,1064.1,30.0]
[1610370131330,69.4208,1064.3,1064.2,4.00959]
[1610370131530,69.4208,1064.3,1064.2,34.00959]
[1610370131734,12.97606707,1065.6,1064.2,34.00959]
[1610370131735,10.99502923,1065.6,1064.2,34.00959]
[1610370132134,11.01561309,1065.8,1064.2,34.00959]
[1610370132335,11.02492777,1065.9,1064.2,34.00959]
[1610370132735,11.02492777,1065.9,1064.2,4.00959]
[1610370133335,4.00959,1065.1,1064.8,4.00959]
[1610370133737,4.00959,1065.1,1064.0,2.178]
[1610370133935,4.00959,1065.1,1063.5,0.28621592]
[1610370134336,11.01120898,1065.7,1063.5,0.28621592]
[1610370134536,11.01120898,1065.7,1063.5,2.13531592]
[1610370134741,11.04426021,1066.1,1064.0,0.28611335]
[1610370134939,11.04426021,1066.1,1064.0,2.64761335]
[1610370135137,13.06311316,1066.5,1064.1,0.28609855]
[1610370135338,4.00959,1065.6,1065.3,4.00959]
[1610370135736,4.00959,1065.6,1064.1,30.0]
[1610370135938,13.05000651,1066.2,1064.1,30.0]
[1610370136238,13.07787766,1066.3,1064.1,30.0]
[1610370136739,13.07787766,1066.3,1064.0,2.64760727]
[1610370136939,13.07787766,1066.3,1064.0,2.3615]
[1610370137141,14.59707766,1066.3,1064.0,2.3615]
[1610370137342,4.00959,1064.1,1064.0,2.3615]
[1610370137743,11.06314078,1065.3,1064.0,2.3615]
[1610370138144,11.0569729,1065.1,1064.0,2.3615]
[1610370138343,11.05301016,1064.9,1064.0,2.3615]
[1610370138742,11.04192428,1064.8,1064.0,2.3615]
[1610370138944,12.88702428,1064.8,1064.0,2.3615]
[1610370139343,4.00959,1064.2,1064.0,2.3615]
[1610370139943,4.00959,1064.2,1063.9,54.4282]
[1610370140843,5.88309,1064.2,1063.9,54.4282]
[1610370141444,15.00907609,1064.0,1063.9,54.4282]
[1610370141844,4.00959,1064.0,1063.9,54.4282]
[1610370142043,16.98680464,1064.0,1063.9,54.4282]
[1610370142445,16.98680464,1064.0,1061.9,75.0915]
[1610370142446,4.00959,1064.0,1061.9,75.0915]
[1610370142645,18.95418339,1064.0,1061.9,75.0915]
[1610370142845,4.00959,1064.0,1061.9,75.0915]
[1610370143045,10.51181899,1064.0,1061.9,75.0915]
[1610370143247,23.45988743,1064.0,1061.9,75.0915]
[1610370143445,19.45029743,1064.0,1062.6,4.00959]
[1610370143646,6.50222899,1064.0,1062.6,5.54069]
[1610370144253,6.50222899,1064.0,1062.6,35.54069]
[1610370144447,74.8548,1064.2,1062.6,35.54069]
[1610370145055,72.9813,1064.2,1062.6,35.8271485]
[1610370145254,13.01716557,1065.0,1062.6,35.8271485]
[1610370145454,13.04133835,1065.4,1064.6,4.00959]
[1610370145651,13.04133835,1065.4,1064.6,5.95649]
[1610370145855,15.04692671,1065.6,1064.6,5.95649]
[1610370145856,13.061309,1065.6,1064.6,5.95649]
[1610370146052,17.07572306,1065.7,1064.6,5.95649]
[1610370146451,4.00959,1065.7,1064.6,5.95649]
[1610370147452,4.00959,1065.3,1064.6,5.95649]
[1610370147653,4.00959,1065.3,1064.6,1.9469]
[1610370148053,13.04839694,1065.3,1064.6,1.9469]
[1610370148253,9.03453811,1065.2,1064.6,1.9469]
[1610370148654,13.04587142,1065.3,1064.6,1.9469]
[1610370149453,4.00959,1064.8,1064.3,2.3795]
[1610370150254,8.1035,1064.7,1063.8,72.1262]
[1610370150856,17.1160863,1064.7,1063.8,72.1262]
[1610370151257,9.00133114,1064.4,1063.8,72.1262]
[1610370151456,10.68613114,1064.4,1063.8,72.1262]
[1610370151657,8.99768546,1064.3,1063.8,72.1262]
[1610370151858,1.6848,1064.4,1063.8,72.1262]
[1610370152857,10.68843369,1064.4,1063.8,72.1262]
[1610370153257,1.6848,1064.4,1063.8,72.1262]
[1610370153456,9.01462903,1064.5,1064.3,4.00959]
[1610370153659,9.03817302,1064.8,1064.3,4.00959]
[1610370153857,9.05827513,1065.0,1064.3,4.00959]
[1610370154257,9.06566761,1065.1,1064.3,4.00959]
[1610370154661,9.08293941,1065.3,1064.2,2.2207]
[1610370155059,9.07771392,1065.1,1064.2,2.2207]
[1610370155285,9.0843185,1065.2,1064.2,2.2207]
[1610370155479,9.0843185,1065.2,1065.1,4.00959]
[1610370155667,9.08772569,1065.4,1065.1,4.00959]
[1610370155864,9.99309,1065.6,1065.1,6.23769]
[1610370156067,5.9835,1065.6,1065.1,6.23769]
[1610370157461,5.9835,1065.6,1065.1,2.2281]
[1610370158077,5.9835,1065.6,1064.6,2.3543]
[1610370158468,11.10371017,1065.5,1064.6,2.3543]
[1610370158880,11.09302068,1065.3,1064.6,2.3543]
[1610370159079,5.9835,1065.6,1064.6,2.3543]
[1610370159472,5.9835,1065.6,1064.8,4.00959]
[1610370159473,9.99309,1065.6,1064.8,4.00959]
[1610370159884,9.99309,1065.6,1064.6,2.3543]
[1610370160068,9.99309,1065.6,1064.2,2.2207]
[1610370160263,9.99309,1065.6,1063.6,1.8581]
[1610370160464,9.99309,1065.6,1063.5,0.2862289]
[1610370160664,5.9835,1065.6,1063.6,0.28619664]
[1610370160865,5.9835,1065.6,1063.6,2.23389664]
[1610370161066,5.9835,1065.6,1063.7,30.28618973]
[1610370161468,5.9835,1065.6,1065.5,4.00959]
[1610370161667,5.9835,1065.6,1065.3,2.1736]
[1610370163468,5.9835,1065.6,1065.5,4.00959]
[1610370163669,5.9835,1065.6,1065.3,2.1736]
[1610370165269,5.9835,1065.6,1064.5,74.0555]
[1610370165470,4.00959,1065.1,1064.9,4.00959]
[1610370165670,5.9835,1065.6,1064.9,4.00959]
[1610370166071,5.9835,1065.6,1064.9,6.00759]
[1610370167072,6.49687352,1065.5,1064.9,6.00759]
[1610370167473,6.49687352,1065.5,1065.4,4.00959]
[1610370167673,6.49687352,1065.5,1065.4,6.06709]
[1610370168073,13.14559209,1066.6,1065.4,6.06709]
[1610370168272,13.17699821,1067.1,1065.4,6.06709]
[1610370168472,13.17699821,1067.1,1065.4,7.49651093]
[1610370168673,13.18526777,1067.3,1065.4,7.49651093]
[1610370169073,13.17844658,1067.2,1065.4,7.49651093]
[1610370169275,15.41714658,1067.2,1065.4,7.49651093]
[1610370169473,15.41714658,1067.2,1067.1,4.00959]
[1610370169686,2.2387,1067.2,1067.1,4.00959]
[1610370170886,13.23495551,1067.6,1067.1,4.00959]
[1610370171089,15.28570741,1067.9,1067.1,4.00959]
[1610370171482,15.34761028,1068.5,1067.8,4.00959]
[1610370171677,15.38100421,1068.7,1067.8,6.23109]
[1610370172078,15.4120551,1069.1,1067.8,6.23109]
[1610370172478,15.42196412,1069.2,1067.8,6.23109]
[1610370172879,15.44008594,1069.4,1067.8,6.23109]
[1610370173278,15.42763036,1069.2,1067.8,6.23109]
[1610370173477,4.00959,1068.9,1068.2,4.00959]
[1610370173977,6.12239,1068.9,1067.8,2.2215]
[1610370174177,6.12239,1068.9,1067.4,1.9638]
[1610370174380,6.12239,1068.9,1067.7,69.0468]
[1610370174581,15.3811074,1068.8,1066.8,1.6717]
[1610370174780,15.37107862,1068.5,1066.0,0.28562271]
[1610370174980,16.97387862,1068.5,1066.0,0.28562271]
[1610370175181,15.35325605,1068.3,1065.8,0.28563677]
[1610370175580,4.00959,1067.3,1067.0,4.00959]
[1610370175781,1.8554,1067.4,1067.0,4.00959]
[1610370176783,16.97585764,1068.5,1067.0,6.30679]
[1610370177381,16.97585764,1068.5,1067.0,2.2972]
[1610370177582,4.00959,1067.5,1067.0,2.2972]
[1610370177781,4.00959,1067.5,1066.8,4.00959]
[1610370178381,4.00959,1067.5,1066.4,1.6085]
[1610370179181,2.3117,1067.7,1066.4,1.6085]
[1610370179381,15.33416712,1067.8,1066.4,1.6085]
[1610370179583,15.37394147,1068.3,1067.7,4.00959]
[1610370179781,15.37394147,1068.3,1067.7,5.66889]
[1610370179982,25.78019307,1068.8,1067.7,1.6593]
[1610370179983,21.71410335,1068.8,1067.7,1.6593]
[1610370180184,6.3079,1068.8,1067.7,1.6593]
[1610370181482,4.00959,1068.3,1067.9,4.00959]
[1610370181883,2.1478,1068.6,1067.9,4.00959]
[1610370182884,6.3079,1068.8,1067.9,4.00959]
[1610370183485,6.3079,1068.8,1068.7,4.00959]
[1610370184284,6.3079,1068.8,1068.4,1.8162]
[1610370185485,6.3079,1068.8,1068.7,4.00959]
[1610370185683,6.3079,1068.8,1068.4,1.8162]
[1610370186985,4.8967,1068.8,1068.4,1.8162]
[1610370187585,4.8967,1068.8,1068.7,4.00959]
[1610370188187,4.8967,1068.8,1068.4,1.8162]
[1610370188386,4.8967,1068.8,1068.0,2.2726]
[1610370188587,4.8967,1068.8,1067.7,1.6593]
[1610370188787,4.8967,1068.8,1066.7,0.28552409]
[1610370188987,4.8967,1068.8,1066.6,0.57104818]
[1610370188988,4.8967,1068.8,1066.6,0.28557071]
[1610370189388,4.8967,1068.8,1066.4,1.89408381]
[1610370189587,4.8967,1068.8,1067.9,4.00959]
[1610370191588,4.8967,1068.8,1068.7,4.00959]
[1610370193489,1.6958,1068.8,1068.7,4.00959]
[1610370193689,19.72310951,1070.6,1068.7,34.00959]
[1610370193890,19.75141343,1070.8,1068.7,34.00959]
[1610370194089,19.78900611,1071.1,1068.7,34.00959]
[1610370194690,75.3217,1072.2,1068.7,34.00959]
[1610370194691,19.83893018,1071.4,1068.7,34.00959]
[1610370194890,19.83893018,1071.4,1068.7,35.88969]
[1610370195093,4.61147893,1071.0,1069.0,0.28492311]
[1610370195490,4.61147893,1071.0,1070.9,4.00959]
[1610370195890,4.07147893,1071.0,1070.9,4.00959]
[1610370196491,4.44758613,1071.7,1070.9,4.00959]
[1610370197495,4.44758613,1071.7,1071.6,4.00959]
[1610370197894,75.3217,1072.2,1071.6,4.00959]
[1610370198094,21.00650911,1073.1,1071.6,4.00959]
[1610370198495,21.05257131,1073.3,1071.6,4.00959]
[1610370198895,6.1883,1074.1,1071.6,4.00959]
[1610370199611,6.1883,1074.1,1071.4,2.4576]
[1610370199612,4.00959,1073.5,1071.4,2.4576]
[1610370199795,2.4357,1073.5,1071.4,2.4576]
[1610370201597,2.4357,1073.5,1073.4,4.00959]
[1610370203102,2.3432,1073.5,1073.4,4.00959]
[1610370203299,22.66081584,1075.5,1073.4,4.00959]
[1610370203500,22.66081584,1075.5,1074.2,4.00959]
[1610370203700,22.66081584,1075.5,1073.0,59.0252]
[1610370203901,24.15641584,1075.5,1073.0,60.5288]
[1610370204203,22.7203436,1075.4,1073.0,60.5288]
[1610370204405,22.7203436,1075.4,1073.0,62.3722]
[1610370204604,1.4956,1075.5,1073.0,62.3722]
[1610370204903,4.44028678,1075.4,1073.0,62.3722]
[1610370205104,4.44028678,1075.4,1073.0,60.5288]
[1610370207607,4.00959,1074.8,1073.4,4.00959]
[1610370207808,6.07109,1074.8,1073.4,4.00959]
[1610370208708,6.07109,1074.8,1073.0,60.5288]
[1610370209114,6.07109,1074.8,1073.0,59.0252]
[1610370209708,4.00959,1073.1,1073.0,59.0252]
[1610370211128,1.5111,1073.2,1073.0,59.0252]
[1610370211725,1.5111,1073.2,1073.1,4.00959]
[1610370211914,6.1976,1074.6,1073.1,4.00959]
[1610370213514,4.4410239,1074.5,1073.1,4.00959]
[1610370213712,6.0878239,1074.5,1074.1,4.00959]
[1610370214120,6.0878239,1074.5,1072.9,1.8874]
[1610370214323,6.0878239,1074.5,1072.8,2.3909]
[1610370214937,4.4396047,1074.4,1072.8,2.3909]
[1610370215716,4.4396047,1074.4,1074.3,4.00959]
[1610370216116,4.4396047,1074.4,1073.4,2.006]
[1610370217118,4.4396047,1074.4,1072.8,2.3909]
[1610370217619,8.4491947,1074.4,1072.8,2.3909]
[1610370218020,8.4491947,1074.4,1072.5,2.3732]
[1610370218219,8.4491947,1074.4,1072.0,71.5761]
[1610370219322,4.44227384,1074.3,1072.0,71.5761]
[1610370219725,4.44227384,1074.3,1073.3,4.00959]
[1610370220724,4.44227384,1074.3,1072.9,1.878]
[1610370220924,4.44172802,1074.4,1072.9,1.878]
[1610370221526,4.44172802,1074.4,1072.5,1.6612]
[1610370221725,4.00959,1073.5,1072.5,1.6612]
[1610370221925,5.87619,1073.5,1072.5,1.6612]
[1610370223624,4.00959,1072.6,1072.5,1.6612]
[1610370223825,1.8666,1073.5,1072.3,4.00959]
[1610370223826,4.59476929,1073.4,1072.3,4.00959]
[1610370224039,2.4444,1072.9,1072.3,4.00959]
[1610370224225,2.4444,1072.9,1072.3,5.88269]
[1610370224427,0.1077,1072.9,1072.3,5.88269]
[1610370225026,4.59476929,1073.4,1072.3,4.00959]
[1610370225226,4.59359325,1072.8,1072.3,4.00959]
[1610370225628,4.59359325,1072.8,1072.7,4.00959]
[1610370226027,4.59359325,1072.8,1072.7,6.37979]
[1610370226626,4.59290961,1073.7,1072.7,6.37979]
[1610370227426,4.59290961,1073.7,1072.7,8.24859]
[1610370227627,4.59290961,1073.7,1073.6,4.00959]
[1610370227827,4.59195168,1073.9,1073.6,4.00959]
[1610370228028,4.59195168,1073.9,1073.1,2.1893]
[1610370229030,6.33415168,1073.9,1073.1,2.1893]
[1610370229729,6.33415168,1073.9,1073.6,4.00959]
[1610370230130,6.33415168,1073.9,1073.1,2.1893]
[1610370230730,4.59254793,1073.8,1073.1,2.1893]
[1610370231331,4.59254793,1073.8,1072.7,2.3702]
[1610370231531,4.59254793,1073.8,1072.6,71.2873]
[1610370231732,4.00959,1073.2,1072.6,75.29689]
[1610370232141,2.3982,1073.4,1072.6,75.29689]
[1610370233538,4.43651342,1073.3,1072.6,75.29689]
[1610370233737,4.43651342,1073.3,1073.0,4.00959]
[1610370235639,4.43651342,1073.3,1073.2,4.00959]
[1610370236240,4.43651342,1073.3,1072.7,2.1725]
[1610370237041,4.43651342,1073.3,1072.4,1.9898]
[1610370237242,6.66901342,1073.3,1072.4,1.9898]
[1610370237443,6.66901342,1073.3,1072.1,2.3372]
[1610370237642,6.66901342,1073.3,1071.0,2.70182097]
[1610370237643,4.00959,1073.0,1071.0,2.98592998]
[1610370237843,4.00959,1073.0,1071.0,0.28410901]
[1610370238743,4.00959,1073.0,1071.1,0.28412028]
[1610370238943,2.2325,1073.3,1071.1,1.93262028]
[1610370239143,4.43726059,1072.9,1071.1,1.93262028]
[1610370239344,4.43726059,1072.9,1071.2,0.28410363]
[1610370239643,4.43726059,1072.9,1072.8,4.00959]
[1610370240645,4.43732588,1073.2,1072.8,4.00959]
[1610370241645,4.43732588,1073.2,1072.5,2.1237]
[1610370241646,4.43732588,1073.2,1073.1,4.00959]
[1610370241845,2.10092588,1073.2,1073.1,4.00959]
[1610370242046,4.00959,1074.1,1073.1,4.00959]
[1610370242245,6.3431,1074.8,1073.1,4.00959]
[1610370242446,6.3431,1074.8,1073.1,5.72399]
[1610370243448,3.17651706,1074.7,1073.1,5.72399]